[Event "Titled Tuesday Blitz December 13 Early 2022"]
[White "Samarth, J Rao"]
[Black "Dushyant Sharma"]
[WhiteFideId "46652370"]
[BlackFideId "25065130"]
[WhiteElo "1564"]
[BlackElo "2280"]
[Result "1-0"]
[Round "05"]
[TimeControl "180+1"]
[Date "2022.12.14"]
[WhiteClock "0:00:06"]
[BlackClock "0:00:06"]

1. c4 {[%clk 0:03:00]}  e6 {[%clk 0:02:48]} 2. d4 {[%clk 0:03:00]}  d5 {[%clk 0:02:46]} 3. Nc3 {[%clk 0:02:59]}  c6 {[%clk 0:02:46]} 4. Nf3 {[%clk 0:02:54]}  f5 {[%clk 0:02:45]} 5. g3 {[%clk 0:02:51]}  Nf6 {[%clk 0:02:45]} 6. Bg2 {[%clk 0:02:51]}  Bd6 {[%clk 0:02:45]} 7. O-O {[%clk 0:02:51]}  O-O {[%clk 0:02:46]} 8. Bf4 {[%clk 0:02:51]}  Qc7 {[%clk 0:02:46]} 9. e3 {[%clk 0:02:50]}  Nbd7 {[%clk 0:02:45]} 10. c5 {[%clk 0:02:50]}  Bxf4 {[%clk 0:02:45]} 11. gxf4 {[%clk 0:02:51]}  b6 {[%clk 0:02:45]} 12. b4 {[%clk 0:02:50]}  a5 {[%clk 0:02:46]} 13. a3 {[%clk 0:02:50]}  b5 {[%clk 0:02:46]} 14. Ne5 {[%clk 0:02:40]}  Nxe5 {[%clk 0:02:46]} 15. dxe5 {[%clk 0:02:38]}  Ne4 {[%clk 0:02:47]} 16. Bxe4 {[%clk 0:02:19]}  fxe4 {[%clk 0:02:48]} 17. Ne2 {[%clk 0:02:17]}  Bd7 {[%clk 0:02:45]} 18. Nd4 {[%clk 0:02:17]}  Kh8 {[%clk 0:02:40]} 19. Kh1 {[%clk 0:01:59]}  g5 {[%clk 0:02:39]} 20. Qg4 {[%clk 0:01:36]}  gxf4 {[%clk 0:02:38]} 21. Rg1 {[%clk 0:01:20]}  Qxe5 {[%clk 0:02:26]} 22. Qh4 {[%clk 0:01:06]}  fxe3 {[%clk 0:02:21]} 23. fxe3 {[%clk 0:01:07]}  Qf6 {[%clk 0:02:15]} 24. Qh5 {[%clk 0:01:02]}  e5 {[%clk 0:02:07]} 25. Raf1 {[%clk 0:01:00]}  Qxf1 {[%clk 0:01:26]} 26. Rxf1 {[%clk 0:00:50]}  Rxf1+ {[%clk 0:01:27]} 27. Kg2 {[%clk 0:00:50]}  Raf8 {[%clk 0:01:19]} 28. Qxe5+ {[%clk 0:00:48]}  R1f6 {[%clk 0:01:13]} 29. bxa5 {[%clk 0:00:43]}  Kg8 {[%clk 0:01:07]} 30. Kg3 {[%clk 0:00:05]}  Rg6+ {[%clk 0:00:42]} 31. Kh4 {[%clk 0:00:05]}  h6 {[%clk 0:00:43]} 32. h3 {[%clk 0:00:05]}  Rf7 {[%clk 0:00:31]} 33. a6 {[%clk 0:00:05]}  Rg5 {[%clk 0:00:18]} 34. Qb8+ {[%clk 0:00:04]}  Kg7 {[%clk 0:00:19]} 35. a7 {[%clk 0:00:04]}  Kg6 {[%clk 0:00:11]} 36. Qg8+ {[%clk 0:00:03]}  Rg7 {[%clk 0:00:11]} 37. Qxg7+ {[%clk 0:00:02]}  Kxg7 {[%clk 0:00:11]} 38. a8=Q {[%clk 0:00:03]}  Re5 {[%clk 0:00:08]} 39. Qd8 {[%clk 0:00:03]}  Be8 {[%clk 0:00:07]} 40. Qc7+ {[%clk 0:00:03]}  Kf6 {[%clk 0:00:07]} 41. Qd8+ {[%clk 0:00:01]}  Re7 {[%clk 0:00:06]} 42. Qd6+ {[%clk 0:00:02]}  Kf7 {[%clk 0:00:07]} 43. Qf4+ {[%clk 0:00:02]}  Kg8 {[%clk 0:00:07]} 44. Nf5 {[%clk 0:00:03]}  Rh7 {[%clk 0:00:05]} 45. Qg3+ {[%clk 0:00:02]}  Kf8 {[%clk 0:00:04]} 46. Qe5 {[%clk 0:00:03]}  Bg6 {[%clk 0:00:04]} 47. Qf6+ {[%clk 0:00:03]}  Bf7 {[%clk 0:00:03]} 48. Qd8+ {[%clk 0:00:04]}  Be8 {[%clk 0:00:04]} 49. Nd6 {[%clk 0:00:04]}  Re7 {[%clk 0:00:03]} 50. Nxe8 {[%clk 0:00:05]}  Rxe8 {[%clk 0:00:04]} 51. Qf6+ {[%clk 0:00:05]}  Kg8 {[%clk 0:00:04]} 52. Qg6+ {[%clk 0:00:06]}  Kf8 {[%clk 0:00:05]} 53. Qxh6+ {[%clk 0:00:07]}  Ke7 {[%clk 0:00:06]} 54. Qxc6 {[%clk 0:00:06]}  Rh8+ {[%clk 0:00:05]} 55. Kg5 {[%clk 0:00:07]}  Rh6 {[%clk 0:00:06]} 56. Qxh6 {[%clk 0:00:06]} 1-0


[Site "https://www.chess.com"]

[Event "Titled Tuesday Blitz December 13 Early 2022"]
[White "Sanchez, Robert"]
[Black "Ovchinnikov, Vsevolod"]
[WhiteFideId "2034360"]
[BlackFideId "24176842"]
[WhiteElo "2352"]
[BlackElo "2376"]
[Result "0-1"]
[Round "05"]
[TimeControl "180+1"]
[Date "2022.12.14"]
[WhiteClock "0:00:02"]
[BlackClock "0:00:07"]

1. Nf3 {[%clk 0:03:00]}  Nf6 {[%clk 0:02:59]} 2. e3 {[%clk 0:03:01]}  g6 {[%clk 0:02:59]} 3. c4 {[%clk 0:03:01]}  Bg7 {[%clk 0:03:00]} 4. Nc3 {[%clk 0:03:02]}  d5 {[%clk 0:02:59]} 5. d4 {[%clk 0:03:00]}  O-O {[%clk 0:02:59]} 6. Be2 {[%clk 0:03:01]}  c5 {[%clk 0:02:59]} 7. cxd5 {[%clk 0:02:59]}  Nxd5 {[%clk 0:02:57]} 8. O-O {[%clk 0:02:59]}  cxd4 {[%clk 0:02:56]} 9. Nxd4 {[%clk 0:02:56]}  Nxc3 {[%clk 0:02:56]} 10. bxc3 {[%clk 0:02:57]}  a6 {[%clk 0:02:50]} 11. Rb1 {[%clk 0:02:54]}  Qc7 {[%clk 0:02:50]} 12. Bf3 {[%clk 0:02:45]}  Nd7 {[%clk 0:02:47]} 13. Qb3 {[%clk 0:02:37]}  Rb8 {[%clk 0:02:37]} 14. Ba3 {[%clk 0:02:27]}  Ne5 {[%clk 0:02:00]} 15. Be2 {[%clk 0:02:22]}  Bg4 {[%clk 0:01:18]} 16. f3 {[%clk 0:02:17]}  Bf5 {[%clk 0:01:10]} 17. Nxf5 {[%clk 0:02:13]}  gxf5 {[%clk 0:01:11]} 18. f4 {[%clk 0:01:26]}  Ng6 {[%clk 0:01:01]} 19. Bd3 {[%clk 0:01:10]}  Qxc3 {[%clk 0:00:24]} 20. Qxc3 {[%clk 0:01:08]}  Bxc3 {[%clk 0:00:25]} 21. Bxf5 {[%clk 0:01:08]}  Rfe8 {[%clk 0:00:25]} 22. Be4 {[%clk 0:01:00]}  b5 {[%clk 0:00:24]} 23. Kf2 {[%clk 0:00:46]}  Rec8 {[%clk 0:00:20]} 24. g3 {[%clk 0:00:25]}  b4 {[%clk 0:00:20]} 25. Bb2 {[%clk 0:00:23]}  a5 {[%clk 0:00:19]} 26. h4 {[%clk 0:00:22]}  e6 {[%clk 0:00:18]} 27. Rfc1 {[%clk 0:00:20]}  Bxb2 {[%clk 0:00:18]} 28. Rxc8+ {[%clk 0:00:20]}  Rxc8 {[%clk 0:00:19]} 29. Rxb2 {[%clk 0:00:20]}  Rc3 {[%clk 0:00:18]} 30. Rb3 {[%clk 0:00:17]}  Rc4 {[%clk 0:00:07]} 31. Bd3 {[%clk 0:00:15]}  Rc5 {[%clk 0:00:08]} 32. Kf3 {[%clk 0:00:12]}  Ne7 {[%clk 0:00:07]} 33. a3 {[%clk 0:00:10]}  bxa3 {[%clk 0:00:07]} 34. Rxa3 {[%clk 0:00:11]}  Nd5 {[%clk 0:00:07]} 35. Be4 {[%clk 0:00:09]}  Nb4 {[%clk 0:00:07]} 36. Ra4 {[%clk 0:00:07]}  h6 {[%clk 0:00:07]} 37. g4 {[%clk 0:00:07]}  Kg7 {[%clk 0:00:07]} 38. g5 {[%clk 0:00:07]}  f5 {[%clk 0:00:06]} 39. Ba8 {[%clk 0:00:06]}  hxg5 {[%clk 0:00:05]} 40. hxg5 {[%clk 0:00:06]}  e5 {[%clk 0:00:05]} 41. fxe5 {[%clk 0:00:06]}  Rxe5 {[%clk 0:00:06]} 42. e4 {[%clk 0:00:05]}  fxe4+ {[%clk 0:00:06]} 43. Bxe4 {[%clk 0:00:06]}  Rxg5 {[%clk 0:00:06]} 44. Kf4 {[%clk 0:00:05]}  Rc5 {[%clk 0:00:07]} 45. Ke3 {[%clk 0:00:05]}  Kf6 {[%clk 0:00:07]} 46. Kd4 {[%clk 0:00:06]}  Rg5 {[%clk 0:00:08]} 47. Kc4 {[%clk 0:00:05]}  Ke6 {[%clk 0:00:08]} 48. Bb7 {[%clk 0:00:04]}  Kd6 {[%clk 0:00:08]} 49. Be4 {[%clk 0:00:03]}  Rc5+ {[%clk 0:00:08]} 50. Kb3 {[%clk 0:00:02]}  Kc7 {[%clk 0:00:07]} 51. Bf5 {[%clk 0:00:02]}  Rxf5 {[%clk 0:00:07]} 0-1


[Site "https://www.chess.com"]

[Event "Titled Tuesday Blitz December 13 Early 2022"]
[White "Santos Flores, Alberto"]
[Black "Gonzalez, Francisco Silva"]
[WhiteFideId "3601234"]
[BlackFideId "1512285"]
[WhiteElo "2235"]
[BlackElo "2220"]
[Result "1-0"]
[Round "05"]
[TimeControl "180+1"]
[Date "2022.12.14"]
[WhiteClock "0:00:46"]
[BlackClock "0:00:39"]

1. d4 {[%clk 0:03:00]}  Nf6 {[%clk 0:02:57]} 2. Nf3 {[%clk 0:03:00]}  d5 {[%clk 0:02:56]} 3. c4 {[%clk 0:03:00]}  e6 {[%clk 0:02:56]} 4. Nc3 {[%clk 0:02:59]}  a6 {[%clk 0:02:56]} 5. c5 {[%clk 0:02:58]}  b6 {[%clk 0:02:55]} 6. cxb6 {[%clk 0:02:59]}  cxb6 {[%clk 0:02:55]} 7. Bf4 {[%clk 0:02:59]}  Bd6 {[%clk 0:02:56]} 8. Bxd6 {[%clk 0:02:57]}  Qxd6 {[%clk 0:02:56]} 9. e3 {[%clk 0:02:57]}  Bb7 {[%clk 0:02:56]} 10. Bd3 {[%clk 0:02:57]}  Nbd7 {[%clk 0:02:55]} 11. O-O {[%clk 0:02:56]}  O-O {[%clk 0:02:53]} 12. Qe2 {[%clk 0:02:55]}  Ne4 {[%clk 0:02:52]} 13. Rfc1 {[%clk 0:02:49]}  b5 {[%clk 0:02:49]} 14. a4 {[%clk 0:02:44]}  b4 {[%clk 0:02:48]} 15. Nb1 {[%clk 0:02:42]}  Rac8 {[%clk 0:02:37]} 16. Nbd2 {[%clk 0:02:36]}  Nxd2 {[%clk 0:02:33]} 17. Nxd2 {[%clk 0:02:34]}  f5 {[%clk 0:02:29]} 18. Nb3 {[%clk 0:02:29]}  Qb6 {[%clk 0:02:28]} 19. a5 {[%clk 0:02:25]}  Qd6 {[%clk 0:02:26]} 20. f3 {[%clk 0:02:14]}  h6 {[%clk 0:02:09]} 21. f4 {[%clk 0:02:05]}  Kh7 {[%clk 0:01:56]} 22. Qe1 {[%clk 0:01:58]}  Rxc1 {[%clk 0:01:51]} 23. Rxc1 {[%clk 0:01:56]}  Rc8 {[%clk 0:01:49]} 24. Rxc8 {[%clk 0:01:53]}  Bxc8 {[%clk 0:01:49]} 25. Qc1 {[%clk 0:01:44]}  Bb7 {[%clk 0:01:48]} 26. Kf2 {[%clk 0:01:35]}  g5 {[%clk 0:01:44]} 27. g3 {[%clk 0:01:32]}  g4 {[%clk 0:01:42]} 28. Ke2 {[%clk 0:01:23]}  Kg7 {[%clk 0:01:40]} 29. Kd2 {[%clk 0:01:21]}  h5 {[%clk 0:01:32]} 30. Nc5 {[%clk 0:01:21]}  Nxc5 {[%clk 0:01:28]} 31. Qxc5 {[%clk 0:01:22]}  Qxc5 {[%clk 0:01:26]} 32. dxc5 {[%clk 0:01:21]}  Kf6 {[%clk 0:01:22]} 33. Kc2 {[%clk 0:01:20]}  e5 {[%clk 0:01:23]} 34. Kb3 {[%clk 0:01:18]}  d4 {[%clk 0:01:20]} 35. exd4 {[%clk 0:01:15]}  e4 {[%clk 0:01:13]} 36. Bc4 {[%clk 0:01:10]}  e3 {[%clk 0:01:12]} 37. Kxb4 {[%clk 0:01:02]}  Bd5 {[%clk 0:01:05]} 38. Bxa6 {[%clk 0:01:01]}  h4 {[%clk 0:01:02]} 39. Kc3 {[%clk 0:00:59]}  Be4 {[%clk 0:01:01]} 40. Bc4 {[%clk 0:00:56]}  hxg3 {[%clk 0:00:56]} 41. hxg3 {[%clk 0:00:55]}  Ke7 {[%clk 0:00:57]} 42. d5 {[%clk 0:00:51]}  Kd7 {[%clk 0:00:53]} 43. b4 {[%clk 0:00:50]}  Kc7 {[%clk 0:00:52]} 44. b5 {[%clk 0:00:50]}  Kb7 {[%clk 0:00:46]} 45. d6 {[%clk 0:00:49]}  Bf3 {[%clk 0:00:39]} 46. Kd3 {[%clk 0:00:46]} 1-0


[Site "https://www.chess.com"]

[Event "Titled Tuesday Blitz December 13 Early 2022"]
[White "Sarana, Alexey"]
[Black "Ozen, Bahadir"]
[WhiteFideId "24133795"]
[BlackFideId "6337058"]
[WhiteElo "2708"]
[BlackElo "2503"]
[Result "1-0"]
[Round "05"]
[TimeControl "180+1"]
[Date "2022.12.13"]
[WhiteClock "0:00:09"]
[BlackClock "0:00:06"]

1. d4 {[%clk 0:02:57]}  d6 {[%clk 0:03:00]} 2. c4 {[%clk 0:02:57]}  Nf6 {[%clk 0:03:00]} 3. Nc3 {[%clk 0:02:57]}  Nbd7 {[%clk 0:03:01]} 4. e4 {[%clk 0:02:57]}  e5 {[%clk 0:03:02]} 5. Nf3 {[%clk 0:02:58]}  c6 {[%clk 0:03:02]} 6. Be2 {[%clk 0:02:58]}  Be7 {[%clk 0:03:02]} 7. O-O {[%clk 0:02:59]}  O-O {[%clk 0:03:03]} 8. Be3 {[%clk 0:02:59]}  a6 {[%clk 0:03:03]} 9. d5 {[%clk 0:02:56]}  cxd5 {[%clk 0:03:01]} 10. cxd5 {[%clk 0:02:57]}  b5 {[%clk 0:03:00]} 11. a3 {[%clk 0:02:57]}  Ng4 {[%clk 0:02:43]} 12. Bd2 {[%clk 0:02:57]}  Nb6 {[%clk 0:02:43]} 13. h3 {[%clk 0:02:50]}  Nf6 {[%clk 0:02:44]} 14. Be3 {[%clk 0:02:51]}  Bd7 {[%clk 0:02:37]} 15. Nd2 {[%clk 0:02:50]}  Qb8 {[%clk 0:02:28]} 16. Rc1 {[%clk 0:02:47]}  Rc8 {[%clk 0:02:29]} 17. b4 {[%clk 0:02:47]}  Bd8 {[%clk 0:02:10]} 18. Qb3 {[%clk 0:02:41]}  Be8 {[%clk 0:02:07]} 19. Rc2 {[%clk 0:02:39]}  Ra7 {[%clk 0:02:06]} 20. Rfc1 {[%clk 0:02:37]}  Rac7 {[%clk 0:02:07]} 21. g4 {[%clk 0:02:31]}  Nfd7 {[%clk 0:02:03]} 22. Qa2 {[%clk 0:02:11]}  Nf8 {[%clk 0:01:59]} 23. Nb3 {[%clk 0:01:52]}  Nc4 {[%clk 0:01:49]} 24. Bxc4 {[%clk 0:01:52]}  Rxc4 {[%clk 0:01:49]} 25. Nd2 {[%clk 0:01:45]}  R4c7 {[%clk 0:01:49]} 26. Ne2 {[%clk 0:01:41]}  Ng6 {[%clk 0:01:48]} 27. Rxc7 {[%clk 0:01:40]}  Rxc7 {[%clk 0:01:49]} 28. Rxc7 {[%clk 0:01:38]}  Qxc7 {[%clk 0:01:49]} 29. Qb3 {[%clk 0:01:38]}  Qe7 {[%clk 0:01:28]} 30. Kg2 {[%clk 0:01:36]}  Bd7 {[%clk 0:01:28]} 31. Qd3 {[%clk 0:01:28]}  Qf6 {[%clk 0:01:24]} 32. Ng3 {[%clk 0:01:18]}  Nf4+ {[%clk 0:01:21]} 33. Bxf4 {[%clk 0:01:16]}  exf4 {[%clk 0:01:18]} 34. Nf5 {[%clk 0:01:15]}  g6 {[%clk 0:01:17]} 35. Nd4 {[%clk 0:01:15]}  h5 {[%clk 0:01:17]} 36. Nc6 {[%clk 0:00:57]}  hxg4 {[%clk 0:01:14]} 37. hxg4 {[%clk 0:00:53]}  Bxg4 {[%clk 0:00:53]} 38. Nf3 {[%clk 0:00:26]}  Bxf3+ {[%clk 0:00:31]} 39. Qxf3 {[%clk 0:00:20]}  Qg5+ {[%clk 0:00:32]} 40. Kf1 {[%clk 0:00:20]}  Bb6 {[%clk 0:00:31]} 41. Qh3 {[%clk 0:00:20]}  Kg7 {[%clk 0:00:28]} 42. Ke2 {[%clk 0:00:19]}  Qg1 {[%clk 0:00:25]} 43. Qc3+ {[%clk 0:00:18]}  Kg8 {[%clk 0:00:22]} 44. Qf3 {[%clk 0:00:13]}  Qc1 {[%clk 0:00:21]} 45. Nb8 {[%clk 0:00:08]}  Qc2+ {[%clk 0:00:16]} 46. Kf1 {[%clk 0:00:08]}  Bd4 {[%clk 0:00:11]} 47. Qxf4 {[%clk 0:00:05]}  Qd3+ {[%clk 0:00:12]} 48. Kg2 {[%clk 0:00:05]}  Be5 {[%clk 0:00:12]} 49. Qf3 {[%clk 0:00:04]}  Qc2 {[%clk 0:00:07]} 50. Nc6 {[%clk 0:00:02]}  Bb2 {[%clk 0:00:05]} 51. Ne7+ {[%clk 0:00:02]}  Kg7 {[%clk 0:00:04]} 52. Qf4 {[%clk 0:00:02]}  Be5 {[%clk 0:00:04]} 53. Qf3 {[%clk 0:00:02]}  Qc3 {[%clk 0:00:03]} 54. Qg4 {[%clk 0:00:01]}  Qb2 {[%clk 0:00:03]} 55. Nf5+ {[%clk 0:00:01]}  Kf6 {[%clk 0:00:03]} 56. Nh4 {[%clk 0:00:01]}  Qxa3 {[%clk 0:00:03]} 57. Nf3 {[%clk 0:00:02]}  Qd3 {[%clk 0:00:02]} 58. Qg5+ {[%clk 0:00:02]}  Kg7 {[%clk 0:00:02]} 59. Nxe5 {[%clk 0:00:02]}  Qxe4+ {[%clk 0:00:01]} 60. Nf3 {[%clk 0:00:03]}  Qxb4 {[%clk 0:00:01]} 61. Kg3 {[%clk 0:00:03]}  Qc5 {[%clk 0:00:01]} 62. Qd2 {[%clk 0:00:02]}  b4 {[%clk 0:00:02]} 63. Qd3 {[%clk 0:00:02]}  a5 {[%clk 0:00:02]} 64. Qe4 {[%clk 0:00:02]}  a4 {[%clk 0:00:02]} 65. Nd4 {[%clk 0:00:02]}  b3 {[%clk 0:00:03]} 66. Ne6+ {[%clk 0:00:01]}  fxe6 {[%clk 0:00:03]} 67. Qxe6 {[%clk 0:00:02]}  Qc3+ {[%clk 0:00:03]} 68. Kg2 {[%clk 0:00:03]}  Qf6 {[%clk 0:00:03]} 69. Qd7+ {[%clk 0:00:04]}  Qf7 {[%clk 0:00:03]} 70. Qxd6 {[%clk 0:00:04]}  b2 {[%clk 0:00:03]} 71. Qe5+ {[%clk 0:00:04]}  Qf6 {[%clk 0:00:03]} 72. Qc7+ {[%clk 0:00:05]}  Kh6 {[%clk 0:00:03]} 73. Qh2+ {[%clk 0:00:05]}  Kg5 {[%clk 0:00:03]} 74. Qg3+ {[%clk 0:00:02]}  Kf5 {[%clk 0:00:03]} 75. Qd3+ {[%clk 0:00:02]}  Ke5 {[%clk 0:00:02]} 76. Qc3+ {[%clk 0:00:02]}  Kf5 {[%clk 0:00:03]} 77. Qf3+ {[%clk 0:00:02]}  Kg5 {[%clk 0:00:03]} 78. Qg3+ {[%clk 0:00:03]}  Kh6 {[%clk 0:00:04]} 79. Qh2+ {[%clk 0:00:03]}  Kg7 {[%clk 0:00:04]} 80. Qc7+ {[%clk 0:00:04]}  Kg8 {[%clk 0:00:05]} 81. Qb8+ {[%clk 0:00:04]}  Kh7 {[%clk 0:00:05]} 82. Qb7+ {[%clk 0:00:03]}  Qg7 {[%clk 0:00:06]} 83. Qb4 {[%clk 0:00:03]}  a3 {[%clk 0:00:05]} 84. d6 {[%clk 0:00:04]}  a2 {[%clk 0:00:05]} 85. Qh4+ {[%clk 0:00:04]}  Qh6 {[%clk 0:00:05]} 86. Qe7+ {[%clk 0:00:04]}  Qg7 {[%clk 0:00:05]} 87. Qh4+ {[%clk 0:00:05]}  Kg8 {[%clk 0:00:02]} 88. Qc4+ {[%clk 0:00:05]}  Qf7 {[%clk 0:00:02]} 89. Qc8+ {[%clk 0:00:05]}  Kg7 {[%clk 0:00:02]} 90. d7 {[%clk 0:00:05]}  b1=Q {[%clk 0:00:02]} 91. Qc3+ {[%clk 0:00:05]}  Kh7 {[%clk 0:00:02]} 92. d8=Q {[%clk 0:00:05]}  Qe4+ {[%clk 0:00:03]} 93. Kg1 {[%clk 0:00:06]}  Qg4+ {[%clk 0:00:02]} 94. Kf1 {[%clk 0:00:06]}  Qd1+ {[%clk 0:00:02]} 95. Qxd1 {[%clk 0:00:05]}  Qb7 {[%clk 0:00:02]} 96. Qda1 {[%clk 0:00:06]}  Qh1+ {[%clk 0:00:02]} 97. Ke2 {[%clk 0:00:06]}  Qe4+ {[%clk 0:00:03]} 98. Kd2 {[%clk 0:00:07]}  Qf4+ {[%clk 0:00:03]} 99. Kd3 {[%clk 0:00:07]}  Qf3+ {[%clk 0:00:03]} 100. Kc4 {[%clk 0:00:08]}  Qc6+ {[%clk 0:00:04]} 101. Kb3 {[%clk 0:00:08]}  Qb5+ {[%clk 0:00:04]} 102. Kxa2 {[%clk 0:00:08]}  Qa4+ {[%clk 0:00:05]} 103. Kb2 {[%clk 0:00:09]}  Qb5+ {[%clk 0:00:05]} 104. Kc1 {[%clk 0:00:09]}  Qe2 {[%clk 0:00:06]} 105. Qg7# {[%clk 0:00:09]} 1-0


[Site "https://www.chess.com"]

[Event "Titled Tuesday Blitz December 13 Early 2022"]
[White "Silvestre, Christian"]
[Black "Derraugh, Geordie"]
[WhiteFideId "30956269"]
[BlackFideId "2603950"]
[WhiteElo "2337"]
[BlackElo "2082"]
[Result "1-0"]
[Round "05"]
[TimeControl "180+1"]
[Date "2022.12.14"]
[WhiteClock "0:00:43"]
[BlackClock "0:00:03"]

1. d4 {[%clk 0:02:24]}  Nf6 {[%clk 0:02:57]} 2. c3 {[%clk 0:02:20]}  e6 {[%clk 0:02:53]} 3. e3 {[%clk 0:02:21]}  c5 {[%clk 0:02:53]} 4. Bd3 {[%clk 0:02:20]}  Be7 {[%clk 0:02:52]} 5. f4 {[%clk 0:02:19]}  b6 {[%clk 0:02:51]} 6. Nf3 {[%clk 0:02:19]}  Bb7 {[%clk 0:02:51]} 7. O-O {[%clk 0:02:19]}  Ne4 {[%clk 0:02:49]} 8. Nbd2 {[%clk 0:02:18]}  f5 {[%clk 0:02:48]} 9. Bxe4 {[%clk 0:02:14]}  fxe4 {[%clk 0:02:48]} 10. Ng5 {[%clk 0:02:13]}  O-O {[%clk 0:02:26]} 11. Ngxe4 {[%clk 0:02:09]}  Qe8 {[%clk 0:02:17]} 12. Qg4 {[%clk 0:02:05]}  Nc6 {[%clk 0:02:15]} 13. Ng3 {[%clk 0:02:01]}  Qf7 {[%clk 0:02:04]} 14. Nf3 {[%clk 0:01:58]}  Rae8 {[%clk 0:02:01]} 15. Bd2 {[%clk 0:01:58]}  Bf6 {[%clk 0:01:56]} 16. Ne5 {[%clk 0:01:57]}  Qe7 {[%clk 0:01:52]} 17. Nh5 {[%clk 0:01:56]}  Kh8 {[%clk 0:01:48]} 18. Rf2 {[%clk 0:01:53]}  d6 {[%clk 0:01:42]} 19. Nxc6 {[%clk 0:01:47]}  Bxc6 {[%clk 0:01:43]} 20. Raf1 {[%clk 0:01:46]}  Be4 {[%clk 0:01:41]} 21. Ng3 {[%clk 0:01:43]}  Bd3 {[%clk 0:01:41]} 22. Re1 {[%clk 0:01:42]}  Qf7 {[%clk 0:01:25]} 23. b3 {[%clk 0:01:31]}  b5 {[%clk 0:01:16]} 24. Bc1 {[%clk 0:01:30]}  d5 {[%clk 0:00:55]} 25. Ba3 {[%clk 0:01:20]}  cxd4 {[%clk 0:00:54]} 26. Bxf8 {[%clk 0:01:17]}  dxe3 {[%clk 0:00:53]} 27. Rxe3 {[%clk 0:01:16]}  Bg6 {[%clk 0:00:48]} 28. Bc5 {[%clk 0:01:13]}  b4 {[%clk 0:00:45]} 29. Bd4 {[%clk 0:01:11]}  bxc3 {[%clk 0:00:44]} 30. Bxf6 {[%clk 0:01:10]}  Qxf6 {[%clk 0:00:45]} 31. Qd1 {[%clk 0:01:04]}  d4 {[%clk 0:00:43]} 32. Ref3 {[%clk 0:00:56]}  d3 {[%clk 0:00:24]} 33. Rxd3 {[%clk 0:00:55]}  Bxd3 {[%clk 0:00:23]} 34. Qxd3 {[%clk 0:00:55]}  Rc8 {[%clk 0:00:23]} 35. Rc2 {[%clk 0:00:54]}  Qxf4 {[%clk 0:00:18]} 36. Rxc3 {[%clk 0:00:53]}  Rf8 {[%clk 0:00:18]} 37. h3 {[%clk 0:00:53]}  h6 {[%clk 0:00:08]} 38. Qe3 {[%clk 0:00:50]}  Qf6 {[%clk 0:00:04]} 39. Kh2 {[%clk 0:00:48]}  Qg6 {[%clk 0:00:04]} 40. Rc6 {[%clk 0:00:47]}  Qf6 {[%clk 0:00:03]} 41. Rxe6 {[%clk 0:00:46]}  Qa1 {[%clk 0:00:04]} 42. Re8 {[%clk 0:00:44]}  Kg8 {[%clk 0:00:03]} 43. Qe6+ {[%clk 0:00:43]} 1-0


[Site "https://www.chess.com"]

[Event "Titled Tuesday Blitz December 13 Early 2022"]
[White "Sprenar, Petr"]
[Black "Shapiro, Daniel"]
[WhiteFideId "397164"]
[BlackFideId "2001780"]
[WhiteElo "2182"]
[BlackElo "2361"]
[Result "1/2-1/2"]
[Round "05"]
[TimeControl "180+1"]
[Date "2022.12.14"]
[WhiteClock "0:01:11"]
[BlackClock "0:00:09"]

1. d4 {[%clk 0:03:00]}  Nf6 {[%clk 0:02:59]} 2. Nc3 {[%clk 0:02:59]}  d5 {[%clk 0:02:58]} 3. Bf4 {[%clk 0:03:00]}  c6 {[%clk 0:02:54]} 4. e3 {[%clk 0:03:00]}  e6 {[%clk 0:02:47]} 5. Nf3 {[%clk 0:02:58]}  Bb4 {[%clk 0:02:44]} 6. Bd3 {[%clk 0:02:53]}  Qa5 {[%clk 0:02:41]} 7. O-O {[%clk 0:02:50]}  O-O {[%clk 0:02:36]} 8. Ne5 {[%clk 0:02:45]}  Bxc3 {[%clk 0:02:21]} 9. bxc3 {[%clk 0:02:45]}  Qxc3 {[%clk 0:02:14]} 10. Rb1 {[%clk 0:02:44]}  Nbd7 {[%clk 0:02:12]} 11. g4 {[%clk 0:02:33]}  Nxe5 {[%clk 0:02:01]} 12. Bxe5 {[%clk 0:02:32]}  Nd7 {[%clk 0:01:47]} 13. Bd6 {[%clk 0:02:25]}  Qa5 {[%clk 0:01:28]} 14. Bxf8 {[%clk 0:02:25]}  Nxf8 {[%clk 0:01:27]} 15. Rb2 {[%clk 0:02:19]}  b5 {[%clk 0:01:26]} 16. e4 {[%clk 0:02:09]}  Qc3 {[%clk 0:01:11]} 17. Rb3 {[%clk 0:02:07]}  Qxd4 {[%clk 0:01:08]} 18. exd5 {[%clk 0:02:07]}  Qxd5 {[%clk 0:01:08]} 19. Qe2 {[%clk 0:02:07]}  e5 {[%clk 0:00:49]} 20. Be4 {[%clk 0:02:05]}  Qc5 {[%clk 0:00:40]} 21. Qf3 {[%clk 0:02:02]}  Ne6 {[%clk 0:00:29]} 22. Rc3 {[%clk 0:02:02]}  Qe7 {[%clk 0:00:29]} 23. Bxc6 {[%clk 0:01:55]}  Nd4 {[%clk 0:00:28]} 24. Qe4 {[%clk 0:01:54]}  Rb8 {[%clk 0:00:16]} 25. Bd5 {[%clk 0:01:49]}  g6 {[%clk 0:00:11]} 26. Re1 {[%clk 0:01:46]}  Qg5 {[%clk 0:00:08]} 27. Qxe5 {[%clk 0:01:41]}  Qxe5 {[%clk 0:00:04]} 28. Rxe5 {[%clk 0:01:40]}  Bxg4 {[%clk 0:00:04]} 29. Re7 {[%clk 0:01:37]}  Ne2+ {[%clk 0:00:04]} 30. Rxe2 {[%clk 0:01:32]}  Bxe2 {[%clk 0:00:04]} 31. Rc7 {[%clk 0:01:33]}  Bc4 {[%clk 0:00:04]} 32. Bc6 {[%clk 0:01:17]}  Bxa2 {[%clk 0:00:03]} 33. Rxa7 {[%clk 0:01:16]}  Be6 {[%clk 0:00:03]} 34. Kf1 {[%clk 0:01:16]}  b4 {[%clk 0:00:03]} 35. Ke2 {[%clk 0:01:16]}  Rc8 {[%clk 0:00:03]} 36. Ba4 {[%clk 0:01:16]}  Rc5 {[%clk 0:00:03]} 37. Ra8+ {[%clk 0:01:16]}  Kg7 {[%clk 0:00:03]} 38. Ke3 {[%clk 0:01:16]}  Rc3+ {[%clk 0:00:04]} 39. Kd4 {[%clk 0:01:16]}  Ra3 {[%clk 0:00:05]} 40. Kc5 {[%clk 0:01:12]}  b3 {[%clk 0:00:05]} 41. cxb3 {[%clk 0:01:07]}  Bxb3 {[%clk 0:00:04]} 42. Bc6 {[%clk 0:01:07]}  Rxa8 {[%clk 0:00:03]} 43. Bxa8 {[%clk 0:01:08]}  Be6 {[%clk 0:00:03]} 44. Kd4 {[%clk 0:01:08]}  Kf6 {[%clk 0:00:04]} 45. Ke3 {[%clk 0:01:09]}  h5 {[%clk 0:00:05]} 46. Kf3 {[%clk 0:01:09]}  g5 {[%clk 0:00:05]} 47. Kg3 {[%clk 0:01:10]}  Bf5 {[%clk 0:00:05]} 48. Kg2 {[%clk 0:01:09]}  Kg6 {[%clk 0:00:06]} 49. Kg1 {[%clk 0:01:10]}  f6 {[%clk 0:00:06]} 50. Bb7 {[%clk 0:01:10]}  Be6 {[%clk 0:00:07]} 51. Ba8 {[%clk 0:01:10]}  Bf5 {[%clk 0:00:07]} 52. Bb7 {[%clk 0:01:10]}  Be6 {[%clk 0:00:08]} 53. Ba8 {[%clk 0:01:11]}  Bf5 {[%clk 0:00:09]} 1/2-1/2


[Site "https://www.chess.com"]